[Event "Marshall CC FIDE Premier April 2024"]
[Site "New York"]
[Date "2024.04.14"]
[Round "4.6"]
[White "Prestia, Paris"]
[Black "Nkululeko, Nkosi"]
[Result "1/2-1/2"]
[ECO "D20"]
[WhiteElo "2059"]
[BlackElo "1956"]
[Annotator "TA"]
[PlyCount "28"]
[EventDate "2024.02.02"]
[EventType "swiss"]
[EventCountry "USA"]
[SourceTitle "playchess.com"]
[Source "ChessBase"]
[SourceQuality "1"]
[TimeControl "5400+30"]

{[%evp 10,28,36,27,68,20,19,16,21,12,91,82,81,58,62,63,42,-1093,-641,-638,-633]} 1. d4 {[%emt 0:02:59]} d5 {[%emt 0:00:17]} 2. c4 {[%emt 0:00:11]} dxc4 {[%emt 0:00:07]} 3. e4 {[%emt 0:00:31][%cal Be2e4,Be4e5][%mdl 32]} Nf6 {[%emt 0:00:56]} 4. e5 {[%emt 0:04:37]} Nd5 {[%emt 0:00:07]} 5. Bxc4 {[%emt 1:24:42]} e6 {[%emt 0:01:09]} 6. Nf3 {[%emt 0:00:00]} a6 {[%emt 0:03:17]} 7. a4 {[%emt 0:00:00]} (7. Nc3 $14) 7... Bb4+ {[%emt 0:01:31][%cal Bf8b4,Bb4e7,Be7c5][%mdl 32]} 8. Bd2 {[%emt 0:00:00]} Be7 {[%emt 0:00:39] The position is equal.} 9. O-O {[%emt 0:00:00]} c5 {[%emt 0:04:40]} (9... Nc6 $11) 10. dxc5 $16 {[%emt 0:00:00] White is more active.} Bxc5 {[%emt 0:00:34]} 11. Nc3 {[%emt 0:00:00]} Nxc3 {[%emt 0:01:21]} 12. Bxc3 {[%emt 0:00:00]} Qxd1 {[%emt 0:00:13]} 13. Re1 $2 {[%emt 0:04:00][%mdl 8192] [#]} (13. Rfxd1 $14 b6 14. Nd2) 13... Qxa1 14. Rxa1 {[%emt 0:00:00]} Nc6 {[%emt 0:00:39][%mdl 32768] Weighted Error Value: White=0.96/Black=1.03.  Loses game:     	White=1     	---        Mistake:       	White=1     	Black=1      Inaccurate:     	---       	Black=1      OK:         	White=1     	Black=2      Best:        	White=1     	---       . An unexpected result.} 1/2-1/2

[Event "Marshall CC FIDE Premier April 2024"]
[Site "New York"]
[Date "2024.04.14"]
[Round "4.7"]
[White "Jain, Vihaan"]
[Black "Hebbar, Eshaan"]
[Result "0-1"]
[ECO "C54"]
[WhiteElo "1931"]
[BlackElo "2201"]
[Annotator "TA"]
[PlyCount "76"]
[EventDate "2024.02.02"]
[EventType "swiss"]
[EventCountry "USA"]
[SourceTitle "playchess.com"]
[Source "ChessBase"]
[SourceQuality "1"]
[TimeControl "5400+30"]

{[%evp 14,76,21,7,12,15,14,14,34,14,25,0,20,0,0,0,0,0,0,0,0,0,21,-97,-97,-98,-98,-90,-69,-279,-127,-133,0,0,29,29,29,-5,199,187,377,363,1580,1512,29988,1323,29989,-571,-477,-865,-719,-797,-790,-730,-945,-927,-917,-1130,-1096,-912,-912,-1304,-1238,-1226,-1167]} 1. e4 {[%emt 0:03:17]} e5 {[%emt 0:00:05]} 2. Nf3 {[%emt 0:00:46]} Nc6 {[%emt 0:00:06]} 3. Bc4 {[%emt 0:00:09]} Bc5 {[%emt 0:00:06]} 4. d3 {[%emt 0:00:07]} Nf6 {[%emt 0:00:04]} 5. c3 {[%emt 0:00:09]} d6 {[%emt 0:00:05]} 6. O-O {[%emt 0:00:11]} h6 {[%emt 0:00:03]} 7. Re1 {[%emt 0:00:07]} O-O {[%emt 0:00:08]} 8. h3 {[%emt 0:00:02]} Bb6 {[%emt 0:00:07]} 9. a4 {[%emt 0:03:32]} a5 {[%emt 0:00:54]} 10. Nbd2 {[%emt 0:01:50]} Ne7 {[%emt 0:00:07] The position is equal.} 11. Bb3 {[%emt 0:08:38]} c6 {[%emt 0:01:38]} 12. d4 {[%emt 0:01:09]} Ng6 {[%emt 0:00:39]} 13. Nc4 {[%emt 0:01:32]} Bc7 {[%emt 0:00:09]} 14. dxe5 {[%emt 0:00:23]} dxe5 {[%emt 0:00:28]} 15. Qc2 {[%emt 0:01:00]} Nh5 {[%emt 0:01:48]} 16. Ne3 {[%emt 0:12:44]} Ngf4 {[%emt 0:01:27]} 17. Nf5 {[%emt 0:08:56]} Qf6 {[%emt 0:00:49]} 18. Kh2 {[%emt 0:05:59]} (18. g3 $11 Nxh3+ 19. Kg2) 18... Bxf5 $17 {[%emt 0:01:13]} 19. exf5 {[%emt 0:03:40] [#]} Nd3 {[%emt 0:05:54] And now ...e4+ would win.} 20. Re4 {[%emt 0:07:06]} Nc5 {[%emt 0:00:08][%cal Of6f5] Excellent horsemanship.} (20... Qxf5 $6 21. Qxd3 Nf6 22. Nd2 $16) 21. Nd2 $2 {[%emt 0:05:18]} Nxe4 {[%emt 0:00:33]} (21... Qxf5 $19 {is more deadly.} 22. Kg1 Nxe4 23. Qxe4 Qxe4 24. Nxe4 Nf4) 22. Nxe4 {[%emt 0:00:02]} Qe7 {[%emt 0:01:25]} ({Better is} 22... Qxf5 $17 {Hoping for ...Qg6.} 23. g4 Qf3 24. gxh5 Kh8) 23. Be3 $1 $11 {[%emt 0:00:07]} b6 {[%emt 0:00:09] Prevents Bc5} 24. g4 {[%emt 0:01:20]} Nf4 {[%emt 0:12:36]} 25. g5 $1 {[%emt 0:07:19]} hxg5 $2 {[%emt 0:06:15]} (25... Kh8 $11 {and Black is okay.}) 26. Rg1 $18 {[%emt 0:00:21][%cal Ba1g1,Bg1g5,Bg5h5][%mdl 32]} Qd7 $2 {[%emt 0:04:45]} (26... Bd8) 27. Rxg5 {[%emt 0:03:23]} Kh8 $2 {[%emt 0:10:37]} (27... Bd8) 28. Bxf4 {[%emt 0:01:53][%cal Oe4f6] White threatens Nf6! and mate.} exf4 {[%emt 0:00:07]} 29. Rh5+ {[%emt 0:00:01]} Kg8 {[%emt 0:00:14] [#]} 30. Nf6+ $4 {[%emt 0:00:07][%mdl 8192]} gxf6 $19 {[%emt 0:00:33] Black is clearly winning.} 31. Qc1 {[%emt 0:05:52]} (31. f3 $142 Rfd8 32. Qg2+ Kf8 33. Rh7) 31... f3+ {[%emt 0:05:23]} 32. Kh1 {[%emt 0:00:09]} Rfd8 {[%emt 0:05:37] Threatens to win with ...Be5.} 33. Qg1+ {[%emt 0:00:48]} Kf8 {[%emt 0:00:02]} 34. Rh7 {[%emt 0:00:25] [#]} Be5 $1 {[%emt 0:02:00]} ({Inferior is} 34... Qxf5 35. Rxf7+ Ke8 36. Qg8#) 35. Qg7+ {[%emt 0:09:17]} Ke7 {[%emt 0:00:16][%cal Od7d1] ( -> ...Qd1+!)} 36. Qxf7+ {[%emt 0:00:04]} Kd6 {[%emt 0:00:02] ...Qxf7 would now be deadly.} 37. Qh5 {[%emt 0:00:02] [#]} Qxh7 $3 {[%emt 0:00:36][%mdl 512]} 38. Qxh7 {[%emt 0:00:04]} Rh8 {[%emt 0:00:01] Weighted Error Value: White=0.71/Black=0.49.  Loses game:     	White=1     	Black=1      Mistake:       	White=1     	Black=4      Inaccurate:     	---       	Black=2      OK:         	White=5     	Black=7      Best:        	White=5     	Black=2      Strong:       	White=2     	---} 0-1

[Event "Marshall CC FIDE Premier April 2024"]
[Site "New York"]
[Date "2024.04.14"]
[Round "4.8"]
[White "Zhu, Linxi"]
[Black "Aravindakshan, Sahana"]
[Result "0-1"]
[ECO "B32"]
[WhiteElo "1980"]
[BlackElo "1904"]
[Annotator "TA"]
[PlyCount "164"]
[EventDate "2024.02.02"]
[EventType "swiss"]
[EventCountry "USA"]
[SourceTitle "playchess.com"]
[Source "ChessBase"]
[SourceQuality "1"]
[TimeControl "5400+30"]

{[%evp 94,164,-877,-29972,-29973,-29971,-29973,-29962,-887,-794,-615,-29974,-29975,-29977,-29980,-29981,-29978,-29984,-29985,-29985,-29986,-29990,-29991,-29987,0,-29986,-29987,-29991,-29992,-29995,-387,-29991,-29990,-29990,-29984,-29984,-29985,-29985,-29986,-29992,-29993,-29994,-29995,-29996,-29985,-29985,-29986,-29986,-29987,-29987,-29986,-29988,-29989,-29988,-29988,-29990,-29991,-29991,-29992,-29993,-29994,-29995,-29995,-29996,-29996,-29996,-29996,-29996,-29997,-29997,-29998,-29998,-29999]} 1. e4 {[%emt 0:00:13]} c5 {[%emt 0:00:03]} 2. Nf3 {[%emt 0:00:26]} Nc6 {[%emt 0:00:12]} 3. d4 {[%emt 0:00:10]} cxd4 {[%emt 0:00:04]} 4. Nxd4 {[%emt 0:00:54]} e5 {[%emt 0:00:06]} 5. Nb5 {[%emt 0:00:05]} d6 {[%emt 0:00:05]} 6. c4 {[%emt 0:00:22]} g6 $1 {[%emt 0:00:18][%mdl 4] is recently more successful than 6...Be7. B32: Sicilian: Löwenthal and Kalashnikov Variations.} 7. N1c3 {[%emt 0:00:35]} a6 {[%emt 1:33:12]} 8. Na3 {[%emt 0:00:04]} Bg7 {[%emt 0:00:00]} 9. Be3 {[%emt 0:00:44]} Nge7 {[%emt 0:00:00]} 10. Qd2 {[%emt 0:03:27]} Nd4 $146 {[%emt 0:00:00]} ({Predecessor:} 10... f5 11. f3 Nd4 12. Bd3 O-O 13. O-O f4 14. Bf2 g5 15. Nc2 Nec6 16. Nxd4 Nxd4 {0-1 Barzanu,I (2121)-Salageanu,P (2169) Eforie Nord op 2002 (8)}) 11. Ne2 {[%emt 0:09:08]} Nec6 {[%emt 0:00:00]} 12. Nxd4 {[%emt 0:05:25]} Nxd4 {[%emt 0:00:00]} 13. Nc2 {[%emt 0:03:11]} Nxc2+ {[%emt 0:00:00]} 14. Qxc2 {[%emt 0:00:11]} O-O {[%emt 0:00:00]} 15. Be2 {[%emt 0:01:43]} Be6 {[%emt 0:00:00]} 16. O-O {[%emt 0:04:24]} Rc8 {[%emt 0:00:00]} 17. Rfd1 {[%emt 0:13:05]} Qe7 {[%emt 0:00:00]} 18. Rac1 {[%emt 0:02:21]} Rc6 {[%emt 0:00:00]} 19. b4 {[%emt 0:08:28]} Rfc8 {[%emt 0:00:00]} 20. a4 {[%emt 0:03:30]} Bxc4 {[%emt 0:00:00]} 21. Bxc4 {[%emt 0:00:05]} Qc7 {[%emt 0:00:00]} 22. Bxf7+ {[%emt 0:15:01]} Qxf7 {[%emt 0:00:00]} 23. Qd3 {[%emt 0:00:56]} Rxc1 {[%emt 0:00:00]} 24. Rxc1 {[%emt 0:00:05]} Rxc1+ {[%emt 0:00:00]} 25. Bxc1 {[%emt 0:00:04]} Qc7 {[%emt 0:00:00]} 26. Be3 {[%emt 0:00:36]} h5 {[%emt 0:00:00]} 27. h3 {[%emt 0:00:44]} Kh7 {[%emt 0:00:00]} 28. Bd2 {[%emt 0:12:18]} Bh6 {[%emt 0:01:13]} 29. Bc3 {[%emt 0:00:47]} Bf8 {[%emt 0:01:13]} 30. g3 {[%emt 0:02:15]} Qf7 {[%emt 0:01:38]} 31. Kg2 {[%emt 0:01:07]} Qb3 {[%emt 0:02:06]} 32. Qf3 {[%emt 0:04:24]} Bg7 {[%emt 0:00:54]} 33. a5 {[%emt 0:01:06]} d5 {[%emt 0:01:06]} 34. Bd2 {[%emt 0:02:38]} Qc2 {[%emt 0:01:01]} 35. Bg5 {[%emt 0:01:17]} d4 {[%emt 0:00:26]} 36. g4 {[%emt 0:00:16]} hxg4 {[%emt 0:02:14]} 37. hxg4 {[%emt 0:00:04]} d3 {[%emt 0:01:20]} 38. Qf7 {[%emt 0:02:40]} d2 {[%emt 0:01:21]} 39. Bf6 {[%emt 0:00:10]} Qxe4+ {[%emt 0:00:21]} 40. f3 {[%emt 0:00:07]} Qe2+ {[%emt 0:00:09]} 41. Kg3 {[%emt 0:00:04]} Qe1+ {[%emt 0:00:39]} 42. Kg2 {[%emt 0:00:05]} Qe2+ {[%emt 0:00:05]} 43. Kg3 {[%emt 0:00:05]} Qxf3+ {[%emt 0:01:04]} 44. Kxf3 {[%emt 0:00:08]} d1=Q+ {[%emt 0:00:07]} 45. Ke3 {[%emt 0:03:40]} Qd4+ {[%emt 0:00:20]} 46. Ke2 {[%emt 0:00:02]} Qxg4+ {[%emt 0:00:59]} 47. Kd3 {[%emt 0:00:06]} Qd4+ {[%emt 0:00:58]} (47... Qf3+ $142 48. Kd2 Qxf6 49. Qxb7 Qf2+ 50. Kd1 Qd4+ 51. Ke2 Qc4+ 52. Kf2 e4 53. b5 Qc2+ (53... Qxb5 54. Qxe4 Qf5+ 55. Qf3 Qxf3+ 56. Kxf3 Bc3 57. Kg2 Bxa5 58. Kf2 Bb4 59. Kf3 a5 60. Ke4 a4 61. Kd3 a3 62. Kc4 g5 63. Kd5 a2 64. Kc4 g4 65. Kxb4 g3 66. Kc3 a1=Q+ 67. Kd3 g2 68. Ke4 g1=Q 69. Kf5 Qg6+ 70. Kf4 Qd4+ 71. Kf3 Qgg4#) (53... axb5 $2 54. a6 $19) 54. Ke1 Qb1+ 55. Kf2 Qb2+ (55... Qxb5 $2 56. Qxe4 Qf5+ 57. Qxf5 $19) (55... axb5 $2 56. Qd7 $19) 56. Kg3 Qe5+ (56... Qxb5 57. Qf7 Qg5+ 58. Kf2 Qf5+ 59. Qxf5 gxf5 60. Kg3 Bh6 61. Kh3 f4 62. Kg2 f3+ 63. Kf2 Bf4 64. Ke1 e3 65. Kd1 e2+ 66. Ke1 Bg3+ 67. Kd2 e1=Q+ 68. Kd3 f2 69. Kc2 f1=Q 70. Kb2 Qc1+ 71. Kb3 Qfc4#) 57. Kg2 e3 (57... Qxb5 58. Qxe4 Qxa5 59. Qb7 $19) 58. Kf1 Qf6+ (58... Qxb5+ 59. Qxb5 axb5 60. Ke2 Bd4 61. Kd3 Ba7 62. Ke2 g5 63. Kf1 g4 64. Ke1 g3 65. Kf1 g2+ 66. Kxg2 e2 67. Kh3 e1=Q 68. Kg4 Qf2 69. Kh3 Bb8 70. Kg4 Kg6 71. Kh3 Qg3#) (58... axb5 $2 59. Ke2 $19) (58... e2+ $2 59. Ke1 $19) 59. Ke2 Qf2+ 60. Kd3 Qd2+ 61. Kc4 Qc3+ (61... Qxa5 62. Qh1+ Bh6 63. Qb7+ Kg8 64. Qd5+ Kf8 65. Qc5+ Kf7 66. Qa7+ Ke6 67. Qxa6+ Qxa6 68. bxa6 $19) 62. Kd5 e2 (62... Qxa5 $2 63. Qe7 $19) 63. Qe7 Qd3+ (63... e1=R 64. Qh4+ Bh6 65. Qxe1 Qxe1 66. bxa6 Qxa5+ 67. Kd4 Qxa6 68. Kd5 Qa4 69. Ke5 Qc4 70. Kd6 Bf4+ 71. Kd7 Kg7 72. Ke7 Qc6 73. Kd8 Bg5#) (63... e1=Q 64. Qxe1 Qxe1 65. bxa6 Qxa5+ 66. Ke4 Qxa6 67. Ke3 Qc4 68. Kf2 Bd4+ 69. Kg2 Qe2+ 70. Kg3 Be5+ 71. Kh3 Qh2+ 72. Kg4 Qh5#) 64. Kc6 Qxb5+ 65. Kc7 Qe5+ (65... Qxa5+ 66. Kc8 e1=Q 67. Qxe1)) 48. Kc2 {[%emt 0:01:25]} Qf2+ {[%emt 0:00:06]} 49. Kd3 {[%emt 0:00:04]} Qxf6 {[%emt 0:00:25]} 50. Qxb7 {[%emt 0:00:03]} Qd6+ {[%emt 0:00:40]} (50... Qf1+ $142 51. Kd2 Qf2+ 52. Kd1 Qd4+ 53. Ke2 e4 54. Qxa6 Qxb4 55. Qc6 Qb2+ (55... Qxa5 56. Kf1 Qf5+ 57. Ke1 Qf3 58. Qc7 Qc3+ 59. Qxc3 Bxc3+ 60. Kf2 Bd4+ 61. Kg3 g5 62. Kg4 e3 63. Kf5 g4 64. Kf4 e2 65. Ke4 g3 66. Kxd4 g2 67. Ke4 e1=Q+ 68. Kd4 g1=Q+ 69. Kd5 Qd1+ 70. Ke5 Qg5+ 71. Ke6 Qdd5#) 56. Kf1 Qa1+ 57. Kg2 Qa2+ (57... Qxa5 $2 58. Qxe4 Qg5+ 59. Kh1 $19) 58. Kf1 Qf7+ (58... Qxa5 59. Qc4 $19) 59. Ke1 Qf3 60. Qc7 Kh6 (60... Qc3+ 61. Qxc3 Bxc3+ 62. Kf1 Bd4 63. Ke2 g5 64. Ke1 e3 65. Kf1 g4 66. Ke1 g3 67. Kf1 g2+ 68. Ke2 g1=Q 69. Kd3 Qd1+ 70. Ke4 e2 71. Kd5 e1=Q 72. Kd6 Qc2 73. Kd7 Qe5 74. Kd8 Qcc7#) 61. Qc1+ e3 62. Qc2 Be5 63. Qe2 Qh1+ 64. Qf1 Qh4+ 65. Kd1 Qd4+ 66. Ke2 Qc4+ 67. Kxe3 Qxf1 68. Ke4 Bc3 (68... Bg7 69. Ke3 Qc4 70. Kd2 Bd4 71. Kd1 Qd3+ 72. Kc1 Bc3 73. a6 Qd2+ 74. Kb1 Qb2#) 69. Kd5 Qb5+ (69... Bxa5 70. Kd4 Qb5 71. Ke3 Bb6+ 72. Kd2 Qc4 73. Kd1 Be3 74. Ke1 Qc2 75. Kf1 Qf2#) 70. Ke4 Kg5 (70... Qxa5 71. Kd3 Kh5 72. Kc4 Kg4 73. Kd3 Kf3 74. Kc2 Ke2 75. Kb3 Qb4+ 76. Kc2 Qb2#) 71. Ke3 Qf1 (71... Bxa5 72. Kd4 Kf5 73. Ke3 Qc4 74. Kf3 Bb6 75. Kg3 Qf1 76. Kh4 Bf2#) 72. Ke4 Qf5+ (72... Bxa5 73. Kd5 Qa6 74. Kd4 Kf4 75. Kc5 Ke3 76. Kd5 Bb4 77. Ke5 Qd6#) 73. Ke3 Kg4 74. Ke2 Qf3#) 51. Ke2 $19 {[%emt 0:00:04]} Qe6 {[%emt 0:00:42]} 52. b5 {[%emt 0:00:58]} Qc4+ {[%emt 0:00:32]} 53. Kf3 {[%emt 0:00:10]} Qd3+ {[%emt 0:00:34]} (53... Qxb5 $2 54. Qxb5 axb5 55. a6 $18) 54. Kg2 {[%emt 0:00:28]} e4 {[%emt 0:00:24]} (54... Qxb5 $2 55. Qxb5 axb5 56. a6 $18) 55. bxa6 {[%emt 0:00:05]} Qf3+ {[%emt 0:00:17]} 56. Kh2 {[%emt 0:01:15]} Kh6 {[%emt 0:00:41]} 57. Qd5 {[%emt 0:01:55]} Qf2+ {[%emt 0:00:40]} 58. Kh3 {[%emt 0:00:15]} Qf3+ {[%emt 0:00:28]} 59. Kh2 {[%emt 0:00:04]} Qf4+ {[%emt 0:00:42]} 60. Kh3 {[%emt 0:00:19]} Be5 {[%emt 0:00:23]} 61. Kg2 {[%emt 0:00:10]} Qf3+ {[%emt 0:00:23]} 62. Kg1 {[%emt 0:00:05]} Bg3 {[%emt 0:00:33]} 63. Qd4 {[%emt 0:00:45]} e3 {[%emt 0:00:36]} 64. Qh8+ {[%emt 0:00:05]} Kg5 {[%emt 0:00:09]} 65. Qd8+ {[%emt 0:00:05]} Kg4 {[%emt 0:00:52]} 66. Qd7+ {[%emt 0:00:08]} Qf5 {[%emt 0:00:29]} 67. Qd4+ {[%emt 0:00:21]} Kh3 {[%emt 0:00:32]} 68. Qb2 {[%emt 0:03:35]} Qf2+ {[%emt 0:00:17]} (68... Qxa5 69. Qg2+ Kh4 70. Qe4+ Kh3 71. Qh1+ Kg4 72. Qe4+ Bf4 73. Qxg6+ Kh3 74. Qh7+ Kg3 (74... Kg4 $2 75. Qg6+ Kh3 76. Qh7+ Kg3 77. Qh2+ Kg4 78. Qg2+ Kh4 79. Qh1+ Kg5 80. Qg2+ Kf6 81. Qe2 $19) 75. Qh2+ Kg4 76. Qg2+ Kh4 77. Qh1+ Kg5 78. Qg2+ Kf6 79. Qf3 Qa1+ 80. Kg2 Qa2+ 81. Kg1 $19) 69. Qxf2 {[%emt 0:00:05]} exf2+ {[%emt 0:00:05]} (69... Bxf2+ 70. Kf1 Bg3 71. a7 Bd6 72. a8=Q (72. a8=B g5 $11) 72... Kg3 73. Qg2+ Kf4 74. Qh2+ (74. Qxg6 Ke5 75. Ke2 Kd5 76. Qf7+ Ke5 77. Qc4 Kf6 78. a6 Bb8 79. Qc6+ Kf7) 74... Kg4 75. Qxd6) 70. Kf1 {[%emt 0:00:09]} Bb8 {[%emt 0:00:04]} 71. Kxf2 {[%emt 0:00:07]} Ba7+ {[%emt 0:00:06]} 72. Kf3 {[%emt 0:01:22]} g5 {[%emt 0:00:04]} 73. Ke4 {[%emt 0:00:04]} g4 {[%emt 0:00:04]} 74. Kd5 {[%emt 0:00:08]} g3 {[%emt 0:00:04]} 75. Kc6 {[%emt 0:00:03]} g2 {[%emt 0:00:05]} 76. Kb7 {[%emt 0:00:02]} g1=Q {[%emt 0:00:07]} ({Not} 76... g1=R 77. Kxa7 Rg8 78. Kb7 $11) 77. Ka8 {[%emt 0:00:09]} Qc5 {[%emt 0:00:16]} 78. Kb7 {[%emt 0:00:08]} Kg4 {[%emt 0:00:19]} 79. Ka8 {[%emt 0:00:04]} Kf5 {[%emt 0:00:03]} 80. Kb7 {[%emt 0:00:05]} Ke6 {[%emt 0:00:04]} 81. Ka8 {[%emt 0:00:04]} Kd7 {[%emt 0:00:18]} 82. Kb7 {[%emt 0:00:04]} Qc7+ {[%emt 0:00:05]} 0-1

[Event "Marshall CC FIDE Premier April 2024"]
[Site "New York"]
[Date "2024.04.14"]
[Round "4.9"]
[White "Rosenthal, Max Manuel"]
[Black "Patel, Maahir M"]
[Result "1/2-1/2"]
[ECO "B48"]
[WhiteElo "1991"]
[BlackElo "1879"]
[Annotator "TA"]
[PlyCount "78"]
[EventDate "2024.02.02"]
[EventType "swiss"]
[EventCountry "USA"]
[SourceTitle "playchess.com"]
[Source "ChessBase"]
[SourceQuality "1"]
[TimeControl "5400+30"]

{[%evp 11,78,38,35,18,23,13,24,18,13,6,14,0,0,0,0,-65,-70,-43,-19,-23,-26,-27,-13,-11,-28,-25,-23,-25,5,6,10,-39,-38,-40,0,0,40,18,32,-35,7,6,8,-5,0,-162,-60,-67,-63,-60,-56,-55,-44,-123,-117,-110,-95,-102,-92,-103,-103,-114,-110,-135,-126,-127,-126,-153,-102]} 1. e4 {[%emt 0:00:04]} c5 {[%emt 0:00:12]} 2. Nf3 {[%emt 0:00:16]} e6 {[%emt 0:00:09]} 3. d4 {[%emt 0:00:09]} cxd4 {[%emt 0:00:04]} 4. Nxd4 {[%emt 0:00:07]} Nc6 {[%emt 0:00:06]} 5. Nc3 {[%emt 0:00:06]} Qc7 {[%emt 0:00:05]} 6. Be3 {[%emt 0:00:10]} a6 {[%emt 0:00:07]} 7. Qf3 {[%emt 0:00:05]} Nf6 {[%emt 0:00:05][%cal Of8a3]} 8. Nxc6 {[%emt 0:00:07]} bxc6 {[%emt 0:00:03]} 9. Qg3 {[%emt 0:00:08] White has an edge.} Qxg3 {[%emt 0:00:06]} 10. hxg3 {[%emt 0:00:05]} Rb8 {[%emt 0:00:11]} 11. O-O-O {[%emt 0:21:19]} Ng4 {[%emt 0:02:36]} 12. Ba7 {[%emt 0:00:05]} Ra8 {[%emt 0:01:24]} 13. Rh4 {[%emt 0:00:08]} ({Better is} 13. Bb6 $11) 13... Rxa7 $15 {[%emt 0:04:41]} 14. Rxg4 {[%emt 0:00:06]} h5 {[%emt 0:01:20]} 15. Rh4 {[%emt 0:00:54]} Be7 {[%emt 0:03:48]} 16. Rh3 {[%emt 0:02:16]} d5 {[%emt 0:03:01]} 17. Be2 {[%emt 0:02:46]} g6 {[%emt 0:05:54][%cal Bg7g6,Bg6g5][%mdl 32]} 18. g4 {[%emt 0:01:11]} h4 {[%emt 0:02:17]} 19. g3 {[%emt 0:01:58]} Bb7 {[%emt 0:06:47]} 20. f4 {[%emt 0:09:52]} g5 {[%emt 0:04:59]} 21. gxh4 {[%emt 0:03:29]} (21. Bf3 $11) 21... gxf4 {[%emt 0:05:03]} 22. h5 {[%emt 0:00:21]} Bg5 {[%emt 0:02:29] [#] Hoping for ...f3+.} 23. Bf3 {[%emt 0:00:08]} Ra8 {[%emt 0:01:02]} 24. Na4 {[%emt 0:01:51]} Rd8 {[%emt 0:03:10]} 25. Rd3 {[%emt 0:09:12]} (25. Nc5 $14 Bc8 26. Re1) 25... Bc8 {[%emt 0:05:05] Strongly threatening ...dxe4.} 26. Nb6 {[%emt 0:04:24]} Bb7 {[%emt 0:00:31]} 27. Na4 {[%emt 0:01:19]} Bc8 {[%emt 0:00:12] ...dxe4 is the strong threat.} 28. Kd1 $2 {[%emt 0:00:39] [#]} (28. Nb6 $11 {and White has nothing to worry.}) 28... e5 {[%emt 0:02:32]} (28... dxe4 $1 $19 29. Bxe4 e5 30. Rxd8+ Kxd8 31. Rd3+ Kc7) 29. Nc3 $1 {[%emt 0:02:39]} O-O {[%emt 0:07:55]} (29... d4 30. Na4 $11) 30. Rh1 {[%emt 0:07:12]} (30. exd5 $2 {is the wrong capture.} cxd5 (30... f5 31. gxf5 cxd5 32. Bxd5+ Kh7 33. Ne4 $14) 31. Rxd5 Rxd5+ (31... e4 $2 32. Bxe4 Rxd5+ 33. Bxd5 $19) 32. Nxd5 e4 $19) 30... d4 {[%emt 0:05:02]} 31. Na4 {[%emt 0:03:03]} Be6 $36 {[%emt 0:02:00][%cal Og5e7][%mdl 2048] Dodges Rb3. White is under pressure.} 32. Be2 {[%emt 0:01:30]} (32. Nc5 $15) 32... Be7 $17 {[%emt 0:02:33][%cal Og8h7]} ({Much worse is} 32... Bxa2 $6 33. b3 $11) 33. b3 {[%emt 0:02:13] White is weak on the dark squares} Rb8 {[%emt 0:01:58]} 34. Rdh3 {[%emt 0:00:59]} Kh7 {[%emt 0:00:40]} 35. Nb2 {[%emt 0:02:19]} Rg8 {[%emt 0:01:07]} 36. Nd3 {[%emt 0:00:07]} f6 {[%emt 0:01:05]} ({Inferior is} 36... Bxg4 37. Bxg4 Rxg4 38. Nxe5 $16) 37. Nf2 {[%emt 0:00:18]} Kh6 {[%emt 0:01:58]} 38. a4 {[%emt 0:02:25]} a5 {[%emt 0:02:51]} 39. Rg1 {[%emt 0:01:10]} Bc5 {[%emt 0:24:52] Weighted Error Value: White=0.20 (precise) /Black=0.11 (very precise) .  Loses game:     	White=1     	---        Mistake:       	White=4     	Black=2      Inaccurate:     	---       	Black=4      OK:         	White=16    	Black=12     Best:        	---       	Black=2      Strong:       	White=1     	---} (39... Rg5 $142 40. Rf1 c5) 1/2-1/2

[Event "Marshall CC FIDE Premier April 2024"]
[Site "New York"]
[Date "2024.04.14"]
[Round "4.10"]
[White "Chachere, Theodore"]
[Black "Dong, Kyle Qiyu"]
[Result "0-1"]
[ECO "D55"]
[WhiteElo "1897"]
[BlackElo "1972"]
[Annotator "RC"]
[PlyCount "32"]
[EventDate "2024.02.02"]
[EventType "swiss"]
[EventCountry "USA"]
[SourceTitle "playchess.com"]
[Source "ChessBase"]
[SourceQuality "1"]
[TimeControl "5400+30"]

1. d4 {[%emt 0:00:09]} d5 {[%emt 0:03:23]} 2. c4 {[%emt 0:00:02]} e6 {[%emt 0:00:15]} 3. Nc3 {[%emt 0:00:02]} Nf6 {[%emt 0:00:33]} 4. Bg5 {[%emt 0:00:08]} Be7 {[%emt 0:00:34]} 5. e3 {[%emt 0:00:08]} O-O {[%emt 0:01:18]} 6. Nf3 {[%emt 0:00:13]} b6 {[%emt 0:01:55]} 7. cxd5 {[%emt 0:02:19]} exd5 {[%emt 0:01:13]} 8. Bd3 {[%emt 0:00:49]} Bb7 {[%emt 0:00:13]} 9. Qc2 {[%emt 0:01:00]} h6 {[%emt 0:00:25]} 10. Bxf6 {[%emt 0:07:06]} Bxf6 {[%emt 0:00:06]} 11. g4 {[%emt 0:02:50]} c5 {[%emt 0:13:14]} 12. O-O-O {[%emt 0:01:16]} cxd4 {[%emt 0:15:01]} 13. exd4 {[%emt 0:00:10]} Nc6 {[%emt 0:01:50]} 14. Bf5 {[%emt 0:05:52]} g6 {[%emt 0:03:05]} 15. Bd3 {[%emt 0:08:07]} Qd6 {[%emt 0:04:14]} 16. Qd2 {[%emt 0:03:26]} Nxd4 {[%emt 0:01:04]} 0-1